[Event "Titled Tuesday Blitz August 1 Early 2023"]
[White "Lehtosaari, Mauri"]
[Black "Gopal, K.N."]
[WhiteFideId "501999"]
[BlackFideId "5001447"]
[WhiteElo "2464"]
[BlackElo "2072"]
[Result "1-0"]
[Round "8"]
[TimeControl "180+1"]
[Date "2023.08.01"]
[WhiteClock "0:00:01"]
[BlackClock "0:00:00"]
[Board "186"]

1. d4 {[%clk 0:03:00]}  Nf6 {[%clk 0:02:58]} 2. Nf3 {[%clk 0:03:01]}  c5 {[%clk 0:02:57]} 3. e3 {[%clk 0:03:01]}  cxd4 {[%clk 0:02:57]} 4. exd4 {[%clk 0:03:02]}  d5 {[%clk 0:02:57]} 5. Bd3 {[%clk 0:03:00]}  Nc6 {[%clk 0:02:58]} 6. h3 {[%clk 0:02:59]}  Nb4 {[%clk 0:02:54]} 7. Bb5+ {[%clk 0:02:58]}  Bd7 {[%clk 0:02:53]} 8. Be2 {[%clk 0:02:57]}  Bf5 {[%clk 0:02:50]} 9. Bb5+ {[%clk 0:02:53]}  Nc6 {[%clk 0:02:44]} 10. c3 {[%clk 0:02:52]}  a6 {[%clk 0:02:43]} 11. Be2 {[%clk 0:02:48]}  h6 {[%clk 0:02:41]} 12. Bf4 {[%clk 0:02:47]}  e6 {[%clk 0:02:41]} 13. Nbd2 {[%clk 0:02:47]}  Bd6 {[%clk 0:02:40]} 14. Bxd6 {[%clk 0:02:43]}  Qxd6 {[%clk 0:02:39]} 15. a4 {[%clk 0:02:40]}  O-O {[%clk 0:02:34]} 16. O-O {[%clk 0:02:40]}  Rac8 {[%clk 0:02:30]} 17. Re1 {[%clk 0:02:39]}  Rfe8 {[%clk 0:02:27]} 18. Bf1 {[%clk 0:02:37]}  Bh7 {[%clk 0:02:21]} 19. Ne5 {[%clk 0:02:36]}  Nd7 {[%clk 0:02:18]} 20. Ndf3 {[%clk 0:02:23]}  Ncxe5 {[%clk 0:02:13]} 21. Nxe5 {[%clk 0:02:16]}  Nxe5 {[%clk 0:02:12]} 22. Rxe5 {[%clk 0:02:17]}  Be4 {[%clk 0:01:55]} 23. Rh5 {[%clk 0:02:15]}  Qf4 {[%clk 0:01:44]} 24. g3 {[%clk 0:02:04]}  Qf3 {[%clk 0:01:43]} 25. Qxf3 {[%clk 0:01:57]}  Bxf3 {[%clk 0:01:42]} 26. Rh4 {[%clk 0:01:53]}  f5 {[%clk 0:01:34]} 27. Bg2 {[%clk 0:01:46]}  g5 {[%clk 0:01:24]} 28. Rxh6 {[%clk 0:01:40]}  Kg7 {[%clk 0:01:25]} 29. Rxe6 {[%clk 0:01:36]}  Rxe6 {[%clk 0:01:22]} 30. Bxf3 {[%clk 0:01:37]}  Rd8 {[%clk 0:01:17]} 31. Kf1 {[%clk 0:01:33]}  Kf6 {[%clk 0:01:15]} 32. Ra3 {[%clk 0:01:32]}  Rb6 {[%clk 0:01:14]} 33. Ra2 {[%clk 0:01:27]}  a5 {[%clk 0:01:10]} 34. Ke2 {[%clk 0:01:22]}  Ke6 {[%clk 0:01:09]} 35. Kd2 {[%clk 0:01:22]}  Rh8 {[%clk 0:01:08]} 36. Bg2 {[%clk 0:01:22]}  Kd6 {[%clk 0:01:02]} 37. Bf1 {[%clk 0:01:14]}  Re8 {[%clk 0:01:00]} 38. Bd3 {[%clk 0:01:13]}  f4 {[%clk 0:00:59]} 39. Be2 {[%clk 0:01:06]}  Re7 {[%clk 0:00:41]} 40. Bg4 {[%clk 0:00:52]}  Kc7 {[%clk 0:00:37]} 41. gxf4 {[%clk 0:00:43]}  gxf4 {[%clk 0:00:36]} 42. h4 {[%clk 0:00:43]}  Rg6 {[%clk 0:00:33]} 43. f3 {[%clk 0:00:42]}  Re3 {[%clk 0:00:32]} 44. Ra1 {[%clk 0:00:41]}  Rg7 {[%clk 0:00:30]} 45. Rh1 {[%clk 0:00:36]}  Rh7 {[%clk 0:00:29]} 46. h5 {[%clk 0:00:36]}  Kd6 {[%clk 0:00:29]} 47. Bf5 {[%clk 0:00:34]}  Rh6 {[%clk 0:00:26]} 48. Bg6 {[%clk 0:00:33]}  Rxf3 {[%clk 0:00:26]} 49. Ke2 {[%clk 0:00:25]}  Rg3 {[%clk 0:00:26]} 50. Kf2 {[%clk 0:00:25]}  Ke7 {[%clk 0:00:16]} 51. Re1+ {[%clk 0:00:20]}  Kf6 {[%clk 0:00:15]} 52. Re8 {[%clk 0:00:19]}  Rh3 {[%clk 0:00:15]} 53. Kg2 {[%clk 0:00:12]}  R3xh5 {[%clk 0:00:12]} 54. Bxh5 {[%clk 0:00:11]}  Rxh5 {[%clk 0:00:12]} 55. Ra8 {[%clk 0:00:06]}  Kf5 {[%clk 0:00:12]} 56. Rxa5 {[%clk 0:00:05]}  Ke4 {[%clk 0:00:12]} 57. Ra8 {[%clk 0:00:06]}  f3+ {[%clk 0:00:11]} 58. Kg1 {[%clk 0:00:04]}  Ke3 {[%clk 0:00:08]} 59. Re8+ {[%clk 0:00:04]}  Kd3 {[%clk 0:00:07]} 60. Rf8 {[%clk 0:00:05]}  Rh3 {[%clk 0:00:06]} 61. Kf2 {[%clk 0:00:05]}  Rh2+ {[%clk 0:00:06]} 62. Kxf3 {[%clk 0:00:05]}  Rxb2 {[%clk 0:00:06]} 63. Rc8 {[%clk 0:00:05]}  Ra2 {[%clk 0:00:05]} 64. Rc5 {[%clk 0:00:04]}  Rxa4 {[%clk 0:00:03]} 65. Rxd5 {[%clk 0:00:03]}  Kxc3 {[%clk 0:00:02]} 66. Rb5 {[%clk 0:00:03]}  Ra7 {[%clk 0:00:00]} 67. Rd5 {[%clk 0:00:01]} 1-0


[Site "https://www.chess.com"]

[Event "Titled Tuesday Blitz August 1 Early 2023"]
[White "le-castor-faineant"]
[Black "Krzywda, Andrzej"]
[BlackFideId "1114565"]
[WhiteElo "2186"]
[BlackElo "2378"]
[Result "1/2-1/2"]
[Round "8"]
[TimeControl "180+1"]
[Date "2023.08.01"]
[WhiteClock "0:00:06"]
[BlackClock "0:00:03"]
[Board "187"]

1. e4 {[%clk 0:02:56]}  e5 {[%clk 0:02:56]} 2. Nf3 {[%clk 0:02:56]}  Nf6 {[%clk 0:02:56]} 3. Nxe5 {[%clk 0:02:54]}  d6 {[%clk 0:02:57]} 4. Nf3 {[%clk 0:02:54]}  Nxe4 {[%clk 0:02:57]} 5. d4 {[%clk 0:02:54]}  d5 {[%clk 0:02:57]} 6. Bd3 {[%clk 0:02:55]}  Be7 {[%clk 0:02:57]} 7. O-O {[%clk 0:02:54]}  Bf5 {[%clk 0:02:58]} 8. c4 {[%clk 0:02:54]}  dxc4 {[%clk 0:02:51]} 9. Bxc4 {[%clk 0:02:53]}  O-O {[%clk 0:02:51]} 10. Nc3 {[%clk 0:02:53]}  Nxc3 {[%clk 0:02:49]} 11. bxc3 {[%clk 0:02:54]}  h6 {[%clk 0:02:37]} 12. Qb3 {[%clk 0:02:40]}  Nc6 {[%clk 0:02:30]} 13. Qxb7 {[%clk 0:02:36]}  Na5 {[%clk 0:02:13]} 14. Qd5 {[%clk 0:02:31]}  Nxc4 {[%clk 0:01:35]} 15. Qxf5 {[%clk 0:02:30]}  Rb8 {[%clk 0:01:29]} 16. Bf4 {[%clk 0:02:26]}  Rb6 {[%clk 0:01:25]} 17. Qd3 {[%clk 0:02:26]}  Qd5 {[%clk 0:01:22]} 18. Bxc7 {[%clk 0:02:14]}  Rb2 {[%clk 0:01:09]} 19. Rfe1 {[%clk 0:02:08]}  Bf6 {[%clk 0:01:01]} 20. Ne5 {[%clk 0:02:02]}  Nxe5 {[%clk 0:00:55]} 21. Bxe5 {[%clk 0:02:01]}  Bxe5 {[%clk 0:00:33]} 22. Rxe5 {[%clk 0:02:02]}  Qb7 {[%clk 0:00:15]} 23. h3 {[%clk 0:01:57]}  Rc8 {[%clk 0:00:14]} 24. a4 {[%clk 0:01:54]}  Qc7 {[%clk 0:00:14]} 25. Rc5 {[%clk 0:01:52]}  Qb8 {[%clk 0:00:14]} 26. Rxc8+ {[%clk 0:01:52]}  Qxc8 {[%clk 0:00:15]} 27. d5 {[%clk 0:01:51]}  Qc5 {[%clk 0:00:13]} 28. Rf1 {[%clk 0:01:46]}  Qd6 {[%clk 0:00:13]} 29. c4 {[%clk 0:01:46]}  Rb4 {[%clk 0:00:13]} 30. a5 {[%clk 0:01:43]}  Qc5 {[%clk 0:00:12]} 31. d6 {[%clk 0:01:43]}  Qxc4 {[%clk 0:00:11]} 32. Qf3 {[%clk 0:01:00]}  Qc8 {[%clk 0:00:07]} 33. Rd1 {[%clk 0:00:58]}  Qd7 {[%clk 0:00:06]} 34. Qc3 {[%clk 0:00:39]}  Rb8 {[%clk 0:00:06]} 35. Qc5 {[%clk 0:00:28]}  Rd8 {[%clk 0:00:06]} 36. h4 {[%clk 0:00:22]}  g6 {[%clk 0:00:05]} 37. g3 {[%clk 0:00:22]}  h5 {[%clk 0:00:05]} 38. Kg2 {[%clk 0:00:19]}  Rc8 {[%clk 0:00:05]} 39. Qe5 {[%clk 0:00:19]}  Re8 {[%clk 0:00:04]} 40. Qd4 {[%clk 0:00:19]}  Re6 {[%clk 0:00:03]} 41. Kh2 {[%clk 0:00:19]}  Re8 {[%clk 0:00:03]} 42. f4 {[%clk 0:00:19]}  Rd8 {[%clk 0:00:03]} 43. Qd5 {[%clk 0:00:17]}  Rc8 {[%clk 0:00:04]} 44. Rd2 {[%clk 0:00:17]}  Rc1 {[%clk 0:00:01]} 45. Qa8+ {[%clk 0:00:16]}  Kg7 {[%clk 0:00:01]} 46. Qe4 {[%clk 0:00:16]}  Rc8 {[%clk 0:00:01]} 47. Qe5+ {[%clk 0:00:17]}  Kg8 {[%clk 0:00:01]} 48. Qd4 {[%clk 0:00:11]}  Rd8 {[%clk 0:00:02]} 49. Qe5 {[%clk 0:00:10]}  Re8 {[%clk 0:00:02]} 50. Qd5 {[%clk 0:00:10]}  Rd8 {[%clk 0:00:03]} 51. Rd4 {[%clk 0:00:08]}  Rc8 {[%clk 0:00:03]} 52. Kg2 {[%clk 0:00:09]}  Rc2+ {[%clk 0:00:03]} 53. Rd2 {[%clk 0:00:09]}  Rc8 {[%clk 0:00:03]} 54. Rb2 {[%clk 0:00:07]}  Rd8 {[%clk 0:00:03]} 55. Rd2 {[%clk 0:00:07]}  Rc8 {[%clk 0:00:03]} 56. Kf3 {[%clk 0:00:06]}  Rc3+ {[%clk 0:00:03]} 57. Kg2 {[%clk 0:00:06]}  Rc8 {[%clk 0:00:03]} 1/2-1/2


[Site "https://www.chess.com"]

[Event "Titled Tuesday Blitz August 1 Early 2023"]
[White "Lakshmi C"]
[Black "Mikhaylova, Irina"]
[WhiteFideId "25035347"]
[BlackFideId "4109040"]
[WhiteElo "2079"]
[BlackElo "2237"]
[Result "0-1"]
[Round "8"]
[TimeControl "180+1"]
[Date "2023.08.01"]
[WhiteClock "0:00:00"]
[BlackClock "0:01:53"]
[Board "189"]

1. e4 {[%clk 0:01:33]}  c5 {[%clk 0:02:57]} 2. Nf3 {[%clk 0:01:33]}  Nc6 {[%clk 0:02:58]} 3. d4 {[%clk 0:01:32]}  cxd4 {[%clk 0:02:58]} 4. Nxd4 {[%clk 0:01:33]}  e5 {[%clk 0:02:59]} 5. Nb5 {[%clk 0:01:32]}  d6 {[%clk 0:02:59]} 6. N1c3 {[%clk 0:01:29]}  a6 {[%clk 0:02:59]} 7. Na3 {[%clk 0:01:29]}  b5 {[%clk 0:03:00]} 8. Nd5 {[%clk 0:01:29]}  Nge7 {[%clk 0:03:01]} 9. Bg5 {[%clk 0:01:16]}  h6 {[%clk 0:03:00]} 10. Be3 {[%clk 0:01:15]}  Nxd5 {[%clk 0:03:00]} 11. Qxd5 {[%clk 0:01:15]}  Bb7 {[%clk 0:03:00]} 12. Qd2 {[%clk 0:01:10]}  Ne7 {[%clk 0:02:57]} 13. c4 {[%clk 0:01:06]}  Bxe4 {[%clk 0:02:26]} 14. cxb5 {[%clk 0:01:04]}  d5 {[%clk 0:02:21]} 15. bxa6 {[%clk 0:00:44]}  d4 {[%clk 0:02:21]} 16. Bb5+ {[%clk 0:00:42]}  Bc6 {[%clk 0:02:17]} 17. Rc1 {[%clk 0:00:03]}  Qd7 {[%clk 0:02:17]} 18. Bxc6 {[%clk 0:00:01]}  Nxc6 {[%clk 0:02:17]} 19. Qc2 {[%clk 0:00:01]}  Nb4 {[%clk 0:02:05]} 20. Qe4 {[%clk 0:00:00]}  Qd5 {[%clk 0:01:53]} 0-1


[Site "https://www.chess.com"]

[Event "Titled Tuesday Blitz August 1 Early 2023"]
[White "Kuchava, Ana"]
[Black "Howell, David W L"]
[WhiteFideId "13605348"]
[BlackFideId "410608"]
[WhiteElo "2191"]
[BlackElo "3025"]
[Result "0-1"]
[Round "8"]
[TimeControl "180+1"]
[Date "2023.08.01"]
[WhiteClock "0:00:00"]
[BlackClock "0:00:23"]
[Board "191"]

1. d4 {[%clk 0:03:00]}  b5 {[%clk 0:02:50]} 2. e4 {[%clk 0:02:56]}  Bb7 {[%clk 0:02:45]} 3. Bd3 {[%clk 0:02:55]}  e6 {[%clk 0:02:43]} 4. Nf3 {[%clk 0:02:54]}  c5 {[%clk 0:02:38]} 5. c3 {[%clk 0:02:52]}  cxd4 {[%clk 0:02:16]} 6. cxd4 {[%clk 0:02:51]}  Nf6 {[%clk 0:02:16]} 7. Qe2 {[%clk 0:02:47]}  b4 {[%clk 0:02:13]} 8. O-O {[%clk 0:02:45]}  Be7 {[%clk 0:02:13]} 9. Bg5 {[%clk 0:02:29]}  h6 {[%clk 0:02:10]} 10. Bh4 {[%clk 0:02:29]}  a5 {[%clk 0:01:50]} 11. Nbd2 {[%clk 0:02:26]}  d5 {[%clk 0:01:51]} 12. e5 {[%clk 0:02:25]}  Nfd7 {[%clk 0:01:51]} 13. Bxe7 {[%clk 0:02:23]}  Qxe7 {[%clk 0:01:52]} 14. Rac1 {[%clk 0:02:21]}  O-O {[%clk 0:01:30]} 15. h3 {[%clk 0:02:08]}  Nc6 {[%clk 0:01:28]} 16. Nb3 {[%clk 0:02:05]}  Rfc8 {[%clk 0:01:25]} 17. Bb5 {[%clk 0:01:58]}  a4 {[%clk 0:01:22]} 18. Nbd2 {[%clk 0:01:45]}  Nb6 {[%clk 0:01:20]} 19. Rfd1 {[%clk 0:01:32]}  Rc7 {[%clk 0:01:17]} 20. Qe3 {[%clk 0:01:10]}  Rac8 {[%clk 0:01:11]} 21. Nf1 {[%clk 0:00:50]}  Na5 {[%clk 0:01:03]} 22. Rxc7 {[%clk 0:00:47]}  Qxc7 {[%clk 0:01:04]} 23. Ng3 {[%clk 0:00:24]}  Qc2 {[%clk 0:01:01]} 24. Qd2 {[%clk 0:00:17]}  Qxd2 {[%clk 0:00:55]} 25. Rxd2 {[%clk 0:00:18]}  Rc1+ {[%clk 0:00:55]} 26. Kh2 {[%clk 0:00:18]}  Nac4 {[%clk 0:00:56]} 27. Re2 {[%clk 0:00:17]}  Rb1 {[%clk 0:00:45]} 28. Ne1 {[%clk 0:00:06]}  Nxb2 {[%clk 0:00:38]} 29. Nc2 {[%clk 0:00:06]}  N2c4 {[%clk 0:00:31]} 30. Ne3 {[%clk 0:00:03]}  a3 {[%clk 0:00:24]} 31. Bxc4 {[%clk 0:00:00]}  dxc4 {[%clk 0:00:23]} 0-1


[Site "https://www.chess.com"]

[Event "Titled Tuesday Blitz August 1 Early 2023"]
[White "Amorim, Daniel Madson De Medeiro"]
[Black "Slayyy_200"]
[WhiteFideId "2124912"]
[WhiteElo "2292"]
[BlackElo "2028"]
[Result "1-0"]
[Round "8"]
[TimeControl "180+1"]
[Date "2023.08.01"]
[WhiteClock "0:00:06"]
[BlackClock "0:00:04"]
[Board "196"]

1. d4 {[%clk 0:03:00]}  Nf6 {[%clk 0:02:59]} 2. c4 {[%clk 0:03:00]}  g6 {[%clk 0:02:58]} 3. Nc3 {[%clk 0:03:00]}  d5 {[%clk 0:02:59]} 4. cxd5 {[%clk 0:02:59]}  Nxd5 {[%clk 0:02:59]} 5. e4 {[%clk 0:03:00]}  Nxc3 {[%clk 0:02:59]} 6. bxc3 {[%clk 0:02:48]}  Bg7 {[%clk 0:02:59]} 7. Nf3 {[%clk 0:02:49]}  O-O {[%clk 0:02:57]} 8. Be2 {[%clk 0:02:48]}  c5 {[%clk 0:02:58]} 9. O-O {[%clk 0:02:47]}  Nc6 {[%clk 0:02:56]} 10. Be3 {[%clk 0:02:42]}  Bg4 {[%clk 0:02:55]} 11. d5 {[%clk 0:02:35]}  Na5 {[%clk 0:02:29]} 12. Bxc5 {[%clk 0:02:22]}  Rc8 {[%clk 0:02:23]} 13. Bd4 {[%clk 0:02:16]}  Bxf3 {[%clk 0:02:10]} 14. Bxf3 {[%clk 0:02:14]}  Bxd4 {[%clk 0:02:01]} 15. Qxd4 {[%clk 0:02:13]}  Rc4 {[%clk 0:02:01]} 16. Qd2 {[%clk 0:02:09]}  Qc7 {[%clk 0:01:56]} 17. Rac1 {[%clk 0:01:52]}  Rc8 {[%clk 0:01:56]} 18. Bg4 {[%clk 0:01:47]}  f5 {[%clk 0:01:48]} 19. Bf3 {[%clk 0:01:21]}  Rxc3 {[%clk 0:01:30]} 20. Rxc3 {[%clk 0:01:18]}  Qxc3 {[%clk 0:01:31]} 21. Qxc3 {[%clk 0:01:18]}  Rxc3 {[%clk 0:01:32]} 22. e5 {[%clk 0:01:16]}  Nc4 {[%clk 0:01:28]} 23. d6 {[%clk 0:01:12]}  exd6 {[%clk 0:00:48]} 24. exd6 {[%clk 0:01:11]}  Nxd6 {[%clk 0:00:46]} 25. h3 {[%clk 0:01:11]}  Kf7 {[%clk 0:00:44]} 26. Rd1 {[%clk 0:01:05]}  Ke7 {[%clk 0:00:40]} 27. Rd2 {[%clk 0:00:57]}  b5 {[%clk 0:00:37]} 28. Kf1 {[%clk 0:00:52]}  a5 {[%clk 0:00:36]} 29. Ke2 {[%clk 0:00:49]}  Nc4 {[%clk 0:00:34]} 30. Rd5 {[%clk 0:00:44]}  Rc2+ {[%clk 0:00:32]} 31. Ke1 {[%clk 0:00:45]}  b4 {[%clk 0:00:29]} 32. Rc5 {[%clk 0:00:38]}  Rc3 {[%clk 0:00:20]} 33. Bd5 {[%clk 0:00:30]}  Kd6 {[%clk 0:00:20]} 34. Rxc4 {[%clk 0:00:29]}  Kxd5 {[%clk 0:00:20]} 35. Rh4 {[%clk 0:00:20]}  h5 {[%clk 0:00:19]} 36. g4 {[%clk 0:00:18]}  fxg4 {[%clk 0:00:19]} 37. hxg4 {[%clk 0:00:19]}  hxg4 {[%clk 0:00:20]} 38. Rxg4 {[%clk 0:00:19]}  a4 {[%clk 0:00:18]} 39. Rxb4 {[%clk 0:00:18]}  a3 {[%clk 0:00:18]} 40. Ra4 {[%clk 0:00:18]}  g5 {[%clk 0:00:16]} 41. Kf1 {[%clk 0:00:18]}  Rc1+ {[%clk 0:00:16]} 42. Kg2 {[%clk 0:00:18]}  Rc3 {[%clk 0:00:15]} 43. Ra5+ {[%clk 0:00:17]}  Ke4 {[%clk 0:00:14]} 44. Rxg5 {[%clk 0:00:17]}  Kf4 {[%clk 0:00:15]} 45. Ra5 {[%clk 0:00:17]}  Rd3 {[%clk 0:00:13]} 46. Ra4+ {[%clk 0:00:16]}  Kg5 {[%clk 0:00:12]} 47. Kf1 {[%clk 0:00:17]}  Kf5 {[%clk 0:00:12]} 48. Ke2 {[%clk 0:00:17]}  Rc3 {[%clk 0:00:13]} 49. Rd4 {[%clk 0:00:15]}  Ke5 {[%clk 0:00:13]} 50. Rd3 {[%clk 0:00:15]}  Rc2+ {[%clk 0:00:12]} 51. Rd2 {[%clk 0:00:16]}  Rc3 {[%clk 0:00:13]} 52. Kd1 {[%clk 0:00:14]}  Ke4 {[%clk 0:00:11]} 53. Rc2 {[%clk 0:00:13]}  Rd3+ {[%clk 0:00:11]} 54. Ke2 {[%clk 0:00:14]}  Rh3 {[%clk 0:00:09]} 55. Rc4+ {[%clk 0:00:14]}  Kd5 {[%clk 0:00:09]} 56. Rb4 {[%clk 0:00:14]}  Rc3 {[%clk 0:00:08]} 57. Kd2 {[%clk 0:00:12]}  Rf3 {[%clk 0:00:09]} 58. Ke1 {[%clk 0:00:11]}  Rc3 {[%clk 0:00:10]} 59. Ra4 {[%clk 0:00:12]}  Ke5 {[%clk 0:00:09]} 60. Kd2 {[%clk 0:00:11]}  Rf3 {[%clk 0:00:09]} 61. Ke2 {[%clk 0:00:11]}  Rc3 {[%clk 0:00:09]} 62. Kf1 {[%clk 0:00:11]}  Rf3 {[%clk 0:00:09]} 63. Kg2 {[%clk 0:00:12]}  Rc3 {[%clk 0:00:10]} 64. Ra8 {[%clk 0:00:12]}  Kf5 {[%clk 0:00:10]} 65. Kh2 {[%clk 0:00:06]}  Kg4 {[%clk 0:00:08]} 66. Kg2 {[%clk 0:00:06]}  Kf5 {[%clk 0:00:09]} 67. Rb8 {[%clk 0:00:06]}  Kg4 {[%clk 0:00:08]} 68. Rg8+ {[%clk 0:00:04]}  Kf5 {[%clk 0:00:08]} 69. Rg3 {[%clk 0:00:04]}  Rc4 {[%clk 0:00:04]} 70. Rxa3 {[%clk 0:00:04]}  Rg4+ {[%clk 0:00:05]} 71. Kf1 {[%clk 0:00:03]}  Re4 {[%clk 0:00:05]} 72. Ra8 {[%clk 0:00:03]}  Kf4 {[%clk 0:00:05]} 73. Kg2 {[%clk 0:00:02]}  Kg4 {[%clk 0:00:06]} 74. a4 {[%clk 0:00:02]}  Kf5 {[%clk 0:00:06]} 75. a5 {[%clk 0:00:02]}  Ra4 {[%clk 0:00:06]} 76. a6 {[%clk 0:00:03]}  Rg4+ {[%clk 0:00:05]} 77. Kf1 {[%clk 0:00:02]}  Rg7 {[%clk 0:00:05]} 78. a7 {[%clk 0:00:03]}  Kg5 {[%clk 0:00:05]} 79. Kg2 {[%clk 0:00:03]}  Kg4 {[%clk 0:00:06]} 80. f3+ {[%clk 0:00:02]}  Kg5 {[%clk 0:00:06]} 81. Kf2 {[%clk 0:00:03]}  Kg6 {[%clk 0:00:06]} 82. f4 {[%clk 0:00:04]}  Kh5 {[%clk 0:00:02]} 83. Rh8+ {[%clk 0:00:03]}  Kg4 {[%clk 0:00:03]} 84. a8=Q {[%clk 0:00:04]}  Kxf4 {[%clk 0:00:03]} 85. Rf8+ {[%clk 0:00:04]}  Kg4 {[%clk 0:00:03]} 86. Rg8 {[%clk 0:00:04]}  Rxg8 {[%clk 0:00:02]} 87. Qxg8+ {[%clk 0:00:05]}  Kh5 {[%clk 0:00:03]} 88. Kf3 {[%clk 0:00:05]}  Kh6 {[%clk 0:00:03]} 89. Kf4 {[%clk 0:00:06]}  Kh5 {[%clk 0:00:04]} 90. Qg5# {[%clk 0:00:06]} 1-0


[Site "https://www.chess.com"]

[Event "Titled Tuesday Blitz August 1 Early 2023"]
[White "Bocangel Chavez, Marjoire J."]
[Black "Tagliata"]
[WhiteFideId "3810500"]
[WhiteElo "1658"]
[BlackElo "2199"]
[Result "0-1"]
[Round "8"]
[TimeControl "180+1"]
[Date "2023.08.01"]
[WhiteClock "0:00:00"]
[BlackClock "0:00:30"]
[Board "200"]

1. e4 {[%clk 0:03:00]}  c5 {[%clk 0:02:59]} 2. Nc3 {[%clk 0:02:58]}  Nc6 {[%clk 0:02:59]} 3. Bb5 {[%clk 0:02:56]}  Nd4 {[%clk 0:02:58]} 4. a4 {[%clk 0:02:55]}  e6 {[%clk 0:02:54]} 5. d3 {[%clk 0:02:54]}  Nxb5 {[%clk 0:02:51]} 6. axb5 {[%clk 0:02:53]}  d6 {[%clk 0:02:50]} 7. f4 {[%clk 0:02:52]}  Nf6 {[%clk 0:02:50]} 8. Nf3 {[%clk 0:02:51]}  Be7 {[%clk 0:02:50]} 9. O-O {[%clk 0:02:51]}  O-O {[%clk 0:02:50]} 10. Qe1 {[%clk 0:02:51]}  d5 {[%clk 0:02:47]} 11. Kh1 {[%clk 0:02:45]}  b6 {[%clk 0:02:44]} 12. Ne5 {[%clk 0:02:29]}  Bb7 {[%clk 0:02:41]} 13. Nc6 {[%clk 0:01:53]}  Bxc6 {[%clk 0:02:40]} 14. bxc6 {[%clk 0:01:54]}  d4 {[%clk 0:02:36]} 15. Nd1 {[%clk 0:01:53]}  Qc7 {[%clk 0:02:35]} 16. Nf2 {[%clk 0:01:43]}  Qxc6 {[%clk 0:02:35]} 17. c4 {[%clk 0:01:05]}  dxc3 {[%clk 0:02:28]} 18. bxc3 {[%clk 0:01:06]}  a5 {[%clk 0:02:27]} 19. c4 {[%clk 0:01:02]}  Nd7 {[%clk 0:02:25]} 20. e5 {[%clk 0:00:59]}  a4 {[%clk 0:02:21]} 21. Ne4 {[%clk 0:00:57]}  b5 {[%clk 0:02:18]} 22. cxb5 {[%clk 0:00:47]}  Qxb5 {[%clk 0:02:19]} 23. Qg3 {[%clk 0:00:46]}  Kh8 {[%clk 0:02:15]} 24. f5 {[%clk 0:00:41]}  exf5 {[%clk 0:02:09]} 25. Rxf5 {[%clk 0:00:40]}  Qc6 {[%clk 0:02:01]} 26. Bb2 {[%clk 0:00:39]}  Qg6 {[%clk 0:02:00]} 27. Qh3 {[%clk 0:00:32]}  Nb6 {[%clk 0:01:49]} 28. Rf3 {[%clk 0:00:24]}  Nd5 {[%clk 0:01:47]} 29. Rg3 {[%clk 0:00:23]}  Qh6 {[%clk 0:01:40]} 30. e6 {[%clk 0:00:19]}  f6 {[%clk 0:01:31]} 31. Qf5 {[%clk 0:00:19]}  Ne3 {[%clk 0:01:15]} 32. Qf2 {[%clk 0:00:14]}  f5 {[%clk 0:00:39]} 33. Qxe3 {[%clk 0:00:09]}  Qxe3 {[%clk 0:00:36]} 34. Rxe3 {[%clk 0:00:08]}  fxe4 {[%clk 0:00:35]} 35. Rxe4 {[%clk 0:00:09]}  Rfd8 {[%clk 0:00:31]} 36. Re3 {[%clk 0:00:03]}  Rab8 {[%clk 0:00:31]} 37. Ba3 {[%clk 0:00:00]}  Rb3 {[%clk 0:00:30]} 0-1


[Site "https://www.chess.com"]

[Event "Titled Tuesday Blitz August 1 Early 2023"]
[White "Todev, Simeon"]
[Black "Cardenas Carbajal, Nilson"]
[WhiteFideId "2925133"]
[BlackFideId "8401128"]
[WhiteElo "2411"]
[BlackElo "2121"]
[Result "0-1"]
[Round "8"]
[TimeControl "180+1"]
[Date "2023.08.01"]
[WhiteClock "0:00:00"]
[BlackClock "0:00:03"]
[Board "202"]

1. e4 {[%clk 0:02:51]}  e5 {[%clk 0:02:58]} 2. Nf3 {[%clk 0:02:50]}  Nc6 {[%clk 0:02:58]} 3. d4 {[%clk 0:02:50]}  exd4 {[%clk 0:02:58]} 4. Bc4 {[%clk 0:02:51]}  Nf6 {[%clk 0:02:57]} 5. O-O {[%clk 0:02:47]}  Nxe4 {[%clk 0:02:52]} 6. Re1 {[%clk 0:02:46]}  d5 {[%clk 0:02:52]} 7. Bxd5 {[%clk 0:02:47]}  Qxd5 {[%clk 0:02:51]} 8. Nc3 {[%clk 0:02:48]}  Qh5 {[%clk 0:02:48]} 9. Nxe4 {[%clk 0:02:48]}  Be7 {[%clk 0:02:30]} 10. Bg5 {[%clk 0:02:43]}  Be6 {[%clk 0:02:18]} 11. Bxe7 {[%clk 0:02:39]}  Nxe7 {[%clk 0:02:14]} 12. Ng3 {[%clk 0:02:22]}  Qg4 {[%clk 0:02:06]} 13. Qxd4 {[%clk 0:02:16]}  Rd8 {[%clk 0:01:20]} 14. Qxg4 {[%clk 0:02:04]}  Bxg4 {[%clk 0:01:18]} 15. Re4 {[%clk 0:01:57]}  Bxf3 {[%clk 0:01:18]} 16. gxf3 {[%clk 0:01:47]}  g6 {[%clk 0:01:16]} 17. Rae1 {[%clk 0:01:36]}  Rd7 {[%clk 0:01:15]} 18. f4 {[%clk 0:01:32]}  f5 {[%clk 0:01:16]} 19. Re6 {[%clk 0:01:30]}  Kf7 {[%clk 0:01:13]} 20. R1e2 {[%clk 0:01:27]}  Nd5 {[%clk 0:01:10]} 21. R6e5 {[%clk 0:01:23]}  Nxf4 {[%clk 0:01:07]} 22. Re1 {[%clk 0:01:18]}  Rhd8 {[%clk 0:00:52]} 23. Nxf5 {[%clk 0:01:15]}  Rd1 {[%clk 0:00:20]} 24. Nh6+ {[%clk 0:00:50]}  Kg7 {[%clk 0:00:19]} 25. Ng4 {[%clk 0:00:49]}  Rxe1+ {[%clk 0:00:18]} 26. Rxe1 {[%clk 0:00:47]}  Rd2 {[%clk 0:00:18]} 27. h4 {[%clk 0:00:35]}  h5 {[%clk 0:00:16]} 28. Ne3 {[%clk 0:00:13]}  Nh3+ {[%clk 0:00:15]} 29. Kg2 {[%clk 0:00:14]}  Nxf2 {[%clk 0:00:15]} 30. Kf3 {[%clk 0:00:14]}  Ng4 {[%clk 0:00:13]} 31. Nxg4 {[%clk 0:00:10]}  hxg4+ {[%clk 0:00:14]} 32. Kxg4 {[%clk 0:00:11]}  Rxc2 {[%clk 0:00:15]} 33. b3 {[%clk 0:00:08]}  Kf7 {[%clk 0:00:13]} 34. Rf1+ {[%clk 0:00:07]}  Kg7 {[%clk 0:00:12]} 35. Re1 {[%clk 0:00:08]}  Kf7 {[%clk 0:00:12]} 36. Rd1 {[%clk 0:00:08]}  b6 {[%clk 0:00:09]} 37. Kg5 {[%clk 0:00:07]}  Rc5+ {[%clk 0:00:08]} 38. Kg4 {[%clk 0:00:05]}  a5 {[%clk 0:00:09]} 39. Rd7+ {[%clk 0:00:05]}  Kf6 {[%clk 0:00:08]} 40. Rd2 {[%clk 0:00:06]}  b5 {[%clk 0:00:08]} 41. Rf2+ {[%clk 0:00:06]}  Kg7 {[%clk 0:00:07]} 42. Re2 {[%clk 0:00:07]}  Rc6 {[%clk 0:00:06]} 43. Kg5 {[%clk 0:00:06]}  Rc5+ {[%clk 0:00:06]} 44. Kg4 {[%clk 0:00:07]}  Kf6 {[%clk 0:00:06]} 45. Rf2+ {[%clk 0:00:07]}  Ke5 {[%clk 0:00:06]} 46. Kg5 {[%clk 0:00:07]}  Rc6 {[%clk 0:00:05]} 47. Rd2 {[%clk 0:00:03]}  Ke4 {[%clk 0:00:03]} 48. Rd7 {[%clk 0:00:04]}  a4 {[%clk 0:00:02]} 49. bxa4 {[%clk 0:00:03]}  bxa4 {[%clk 0:00:03]} 50. Rd2 {[%clk 0:00:02]}  Ke3 {[%clk 0:00:03]} 51. Rd7 {[%clk 0:00:03]}  Rc2 {[%clk 0:00:02]} 52. Kxg6 {[%clk 0:00:02]}  Rxa2 {[%clk 0:00:02]} 53. Rxc7 {[%clk 0:00:02]}  Rg2+ {[%clk 0:00:02]} 54. Kh6 {[%clk 0:00:02]}  a3 {[%clk 0:00:03]} 55. h5 {[%clk 0:00:02]}  a2 {[%clk 0:00:03]} 56. Ra7 {[%clk 0:00:00]}  Kd3 {[%clk 0:00:03]} 0-1


[Site "https://www.chess.com"]